[Event "Late-Titled-Tuesday-Blitz-September-26-2023"]
[Site "Chess.com"]
[Date "2023.09.26"]
[Round "1"]
[White "Cipy77"]
[Black "iturrizaga"]
[Result "0-1"]
[WhiteElo "2497"]
[BlackElo "3007"]
[TimeControl "180+1"]
[EndTime "14:07:08 PDT"]
[Termination "iturrizaga won by resignation"]

1. e4 {[%clk 0:02:58.9]} 1... c5 {[%clk 0:02:59.7]} 2. Nf3 {[%clk 0:02:59.4]}
2... e6 {[%clk 0:03:00]} 3. d4 {[%clk 0:02:59.8]} 3... cxd4 {[%clk 0:03:00.9]}
4. Nxd4 {[%clk 0:03:00.7]} 4... a6 {[%clk 0:03:01.4]} 5. Nc3 {[%clk 0:03:00.4]}
5... b5 {[%clk 0:02:57.5]} 6. Bd3 {[%clk 0:02:58.4]} 6... Bb7 {[%clk 0:02:57.8]}
7. a4 {[%clk 0:02:56.3]} 7... b4 {[%clk 0:02:57.7]} 8. Nb1 {[%clk 0:02:55.1]}
8... Nf6 {[%clk 0:02:57.9]} 9. Nd2 {[%clk 0:02:55]} 9... Bc5 {[%clk 0:02:57.7]}
10. N4b3 {[%clk 0:02:54.7]} 10... Ba7 {[%clk 0:02:56.6]} 11. O-O {[%clk
0:02:51.7]} 11... O-O {[%clk 0:02:57.2]} 12. e5 {[%clk 0:02:48.3]} 12... Nd5
{[%clk 0:02:57.3]} 13. Ne4 {[%clk 0:02:46.3]} 13... Nc6 {[%clk 0:02:52.4]} 14.
Bg5 {[%clk 0:02:45.5]} 14... Qc7 {[%clk 0:02:50.9]} 15. Nf6+ {[%clk 0:02:30.3]}
15... Nxf6 {[%clk 0:02:14.4]} 16. exf6 {[%clk 0:02:28.5]} 16... g6 {[%clk
0:02:06.8]} 17. Qg4 {[%clk 0:02:13.1]} 17... Ne5 {[%clk 0:01:58.3]} 18. Qh3
{[%clk 0:02:05.7]} 18... Qc6 {[%clk 0:01:38.2]} 19. Na5 {[%clk 0:02:03.7]} 19...
Qd5 {[%clk 0:01:16.1]} 20. Nxb7 {[%clk 0:02:03]} 20... h5 {[%clk 0:01:16.9]} 21.
Be3 {[%clk 0:01:55.3]} 21... Nxd3 {[%clk 0:01:04.3]} 22. Bxa7 {[%clk 0:01:54.5]}
22... Nf4 {[%clk 0:01:03.7]} 23. Qf3 {[%clk 0:01:46.3]} 23... Qxf3 {[%clk
0:01:02]} 24. gxf3 {[%clk 0:01:47.2]} 24... Rxa7 {[%clk 0:01:02.9]} 25. Nd6
{[%clk 0:01:44.8]} 25... Rc7 {[%clk 0:01:01.5]} 26. Rfe1 {[%clk 0:01:36.6]}
26... Rxc2 {[%clk 0:00:58.3]} 27. Re4 {[%clk 0:01:36.6]} 27... Nh3+ {[%clk
0:00:58.5]} 28. Kg2 {[%clk 0:01:31.3]} 28... Nxf2 {[%clk 0:00:56.7]} 29. Rc4
{[%clk 0:01:29.5]} 29... Rxb2 {[%clk 0:00:56.9]} 30. Kg3 {[%clk 0:01:24.6]}
30... Rd2 {[%clk 0:00:48.9]} 31. Nc8 {[%clk 0:01:18.3]} 31... a5 {[%clk
0:00:41.6]} 32. Rc5 {[%clk 0:01:07.7]} 32... Kh7 {[%clk 0:00:40.9]} 33. Ne7
{[%clk 0:01:02.7]} 33... Ra8 {[%clk 0:00:36.9]} 34. Rb5 {[%clk 0:00:59.1]} 34...
Nd3 {[%clk 0:00:32.5]} 35. Rg1 {[%clk 0:00:56.1]} 35... Kh6 {[%clk 0:00:23]} 36.
Rb7 {[%clk 0:00:38.4]} 36... Nc5 {[%clk 0:00:20.6]} 37. Rc7 {[%clk 0:00:36]}
37... Nxa4 {[%clk 0:00:21]} 38. Rgc1 {[%clk 0:00:35.4]} 38... Nc3 {[%clk
0:00:21.1]} 39. h4 {[%clk 0:00:33.9]} 39... Ne2+ {[%clk 0:00:21.4]} 40. Kh3
{[%clk 0:00:31.4]} 40... Nf4+ {[%clk 0:00:21.5]} 41. Kg3 {[%clk 0:00:31.3]}
41... e5 {[%clk 0:00:22.4]} 42. R1c2 {[%clk 0:00:28.5]} 42... Rxc2 {[%clk
0:00:20.8]} 43. Rxc2 {[%clk 0:00:29.4]} 43... b3 {[%clk 0:00:21.6]} 44. Rb2
{[%clk 0:00:26.3]} 44... a4 {[%clk 0:00:21.9]} 45. Kf2 {[%clk 0:00:24.5]} 45...
Nd3+ {[%clk 0:00:21.9]} 0-1

[Event "Late-Titled-Tuesday-Blitz-September-26-2023"]
[Site "Chess.com"]
[Date "2023.09.26"]
[Round "1"]
[White "PapaieDudu"]
[Black "IlanSchnaider"]
[Result "0-1"]
[WhiteElo "2435"]
[BlackElo "2805"]
[TimeControl "180+1"]
[EndTime "14:07:08 PDT"]
[Termination "IlanSchnaider won by checkmate"]

1. e4 {[%clk 0:02:38.3]} 1... c5 {[%clk 0:02:59.4]} 2. Nf3 {[%clk 0:02:32.5]}
2... d6 {[%clk 0:02:59.6]} 3. d4 {[%clk 0:02:31.2]} 3... cxd4 {[%clk 0:03:00.5]}
4. Nxd4 {[%clk 0:02:31.1]} 4... Nf6 {[%clk 0:03:00.4]} 5. Nc3 {[%clk 0:02:31.3]}
5... a6 {[%clk 0:03:00.2]} 6. f3 {[%clk 0:02:31.6]} 6... e5 {[%clk 0:02:59.4]}
7. Nb3 {[%clk 0:02:31.1]} 7... Be7 {[%clk 0:02:59.5]} 8. Be3 {[%clk 0:02:24]}
8... Be6 {[%clk 0:02:59.1]} 9. Qd2 {[%clk 0:02:24]} 9... h5 {[%clk 0:02:58.9]}
10. O-O-O {[%clk 0:02:22.6]} 10... Nbd7 {[%clk 0:02:57.5]} 11. Kb1 {[%clk
0:02:20.7]} 11... Rc8 {[%clk 0:02:37.5]} 12. Nd5 {[%clk 0:02:07.1]} 12... Nxd5
{[%clk 0:02:33.8]} 13. exd5 {[%clk 0:02:07.2]} 13... Bf5 {[%clk 0:02:34.4]} 14.
Bd3 {[%clk 0:02:02.3]} 14... Bxd3 {[%clk 0:02:33.9]} 15. Qxd3 {[%clk 0:02:03.2]}
15... g6 {[%clk 0:02:17.8]} 16. f4 {[%clk 0:01:32.6]} 16... Bf6 {[%clk
0:02:14.4]} 17. f5 {[%clk 0:01:30.3]} 17... g5 {[%clk 0:02:01.3]} 18. Nd2 {[%clk
0:01:07.9]} 18... b5 {[%clk 0:01:49.5]} 19. Ne4 {[%clk 0:01:04.6]} 19... Be7
{[%clk 0:01:38.9]} 20. Qa3 {[%clk 0:00:49.9]} 20... a5 {[%clk 0:01:23.7]} 21.
Nxd6+ {[%clk 0:00:34.5]} 21... Kf8 {[%clk 0:01:23.7]} 22. Nb7 {[%clk 0:00:34.3]}
22... Qe8 {[%clk 0:00:17.8]} 23. d6 {[%clk 0:00:32.7]} 23... Bf6 {[%clk
0:00:17.5]} 24. Qxa5 {[%clk 0:00:31.5]} 24... Kg7 {[%clk 0:00:17.6]} 25. Qxb5
{[%clk 0:00:25.4]} 25... Rb8 {[%clk 0:00:16.4]} 26. Qc6 {[%clk 0:00:22.6]} 26...
e4 {[%clk 0:00:12.4]} 27. Bd4 {[%clk 0:00:21.2]} 27... Bxd4 {[%clk 0:00:11]} 28.
Rxd4 {[%clk 0:00:22.1]} 28... Qe5 {[%clk 0:00:10.6]} 29. Rxe4 {[%clk 0:00:20.8]}
29... Qxf5 {[%clk 0:00:11]} 30. Rhe1 {[%clk 0:00:13]} 30... Rhc8 {[%clk
0:00:10.8]} 31. Qa6 {[%clk 0:00:09.3]} 31... Nf6 {[%clk 0:00:09.5]} 32. Rb4
{[%clk 0:00:08.5]} 32... Qxc2+ {[%clk 0:00:09.5]} 33. Ka1 {[%clk 0:00:08.4]}
33... Qc1+ {[%clk 0:00:10.4]} 34. Rxc1 {[%clk 0:00:09.1]} 34... Rxc1# {[%clk
0:00:11.3]} 0-1

[Event "Late-Titled-Tuesday-Blitz-September-26-2023"]
[Site "Chess.com"]
[Date "2023.09.26"]
[Round "1"]
[White "pedromartinez91"]
[Black "jjbolanos"]
[Result "1-0"]
[WhiteElo "2538"]
[BlackElo "2109"]
[TimeControl "180+1"]
[EndTime "14:07:08 PDT"]
[Termination "pedromartinez91 won on time"]

1. e4 {[%clk 0:03:00.9]} 1... c5 {[%clk 0:02:59.1]} 2. Nf3 {[%clk 0:02:59.9]}
2... e6 {[%clk 0:02:59.3]} 3. d4 {[%clk 0:02:59.7]} 3... cxd4 {[%clk 0:03:00.2]}
4. Nxd4 {[%clk 0:03:00.2]} 4... a6 {[%clk 0:03:00.9]} 5. g3 {[%clk 0:02:54.8]}
5... d5 {[%clk 0:02:58.9]} 6. Bg2 {[%clk 0:02:45.4]} 6... dxe4 {[%clk
0:02:56.6]} 7. Bxe4 {[%clk 0:02:46.3]} 7... Nf6 {[%clk 0:02:56.5]} 8. Bg2 {[%clk
0:02:45.7]} 8... Be7 {[%clk 0:02:47.3]} 9. O-O {[%clk 0:02:42.4]} 9... O-O
{[%clk 0:02:47.4]} 10. c4 {[%clk 0:02:41.6]} 10... Qc7 {[%clk 0:02:46]} 11. Qe2
{[%clk 0:02:39.1]} 11... Bd7 {[%clk 0:02:45.6]} 12. Bf4 {[%clk 0:02:38.4]} 12...
Qc8 {[%clk 0:02:39.7]} 13. Nf5 {[%clk 0:02:27.6]} 13... exf5 {[%clk 0:02:15.4]}
14. Qxe7 {[%clk 0:02:23.4]} 14... Qxc4 {[%clk 0:02:06.5]} 15. Bxb7 {[%clk
0:02:01.5]} 15... Ra7 {[%clk 0:02:06.2]} 16. Bg2 {[%clk 0:02:01.5]} 16... Re8
{[%clk 0:01:51.2]} 17. Qd6 {[%clk 0:01:47.6]} 17... Nc6 {[%clk 0:01:36]} 18. Rc1
{[%clk 0:01:28]} 18... Qe6 {[%clk 0:00:51.9]} 19. Na3 {[%clk 0:01:03.5]} 19...
Qxd6 {[%clk 0:00:47.6]} 20. Bxd6 {[%clk 0:01:04.4]} 20... Ne4 {[%clk 0:00:48]}
21. Bf4 {[%clk 0:00:57.8]} 21... Rb7 {[%clk 0:00:38.9]} 22. Nc4 {[%clk
0:00:55.6]} 22... g5 {[%clk 0:00:30.4]} 23. Bxe4 {[%clk 0:00:53.5]} 23... gxf4
{[%clk 0:00:27.3]} 24. Bxc6 {[%clk 0:00:51.9]} 24... Bxc6 {[%clk 0:00:27.2]} 25.
Nd6 {[%clk 0:00:52.5]} 25... Re6 {[%clk 0:00:06.5]} 26. Rxc6 {[%clk 0:00:44.7]}
26... Rd7 {[%clk 0:00:06.7]} 27. Rc8+ {[%clk 0:00:43.9]} 27... Kg7 {[%clk
0:00:06.3]} 28. Nxf5+ {[%clk 0:00:42.8]} 28... Kf6 {[%clk 0:00:06.9]} 29. Nh4
{[%clk 0:00:42.6]} 29... fxg3 {[%clk 0:00:05.6]} 30. fxg3 {[%clk 0:00:42.1]}
30... Re2 {[%clk 0:00:06.2]} 31. Rf1+ {[%clk 0:00:42.5]} 31... Ke7 {[%clk
0:00:03.8]} 32. Nf5+ {[%clk 0:00:42.6]} 32... Ke6 {[%clk 0:00:04.4]} 33. Rc6+
{[%clk 0:00:40.5]} 33... Kd5 {[%clk 0:00:03.8]} 34. Rc3 {[%clk 0:00:38.1]} 34...
Ke4 {[%clk 0:00:04]} 35. Rf4+ {[%clk 0:00:36]} 35... Ke5 {[%clk 0:00:04.6]} 36.
Rc5+ {[%clk 0:00:31.3]} 36... Ke6 {[%clk 0:00:04.6]} 37. Nd4+ {[%clk 0:00:31.7]}
37... Rxd4 {[%clk 0:00:02.4]} 38. Rxd4 {[%clk 0:00:32.6]} 38... Rxb2 {[%clk
0:00:02.9]} 39. Ra5 {[%clk 0:00:32]} 1-0

[Event "Late-Titled-Tuesday-Blitz-September-26-2023"]
[Site "Chess.com"]
[Date "2023.09.26"]
[Round "1"]
[White "ChessSwole"]
[Black "Kombinator01"]
[Result "1-0"]
[WhiteElo "2717"]
[BlackElo "2405"]
[TimeControl "180+1"]
[EndTime "14:07:11 PDT"]
[Termination "ChessSwole won by resignation"]

1. d4 {[%clk 0:03:00.9]} 1... Nf6 {[%clk 0:03:00.2]} 2. c4 {[%clk 0:03:00.9]}
2... g6 {[%clk 0:02:59.9]} 3. Nc3 {[%clk 0:02:58.9]} 3... d5 {[%clk 0:03:00.3]}
4. Nf3 {[%clk 0:02:58.5]} 4... Bg7 {[%clk 0:03:00.3]} 5. Qa4+ {[%clk 0:02:59.1]}
5... Nc6 {[%clk 0:02:59.3]} 6. cxd5 {[%clk 0:02:57.7]} 6... Nxd5 {[%clk
0:03:00.2]} 7. e4 {[%clk 0:02:58.2]} 7... Nxc3 {[%clk 0:03:00]} 8. bxc3 {[%clk
0:02:59.1]} 8... O-O {[%clk 0:03:00.1]} 9. h3 {[%clk 0:02:57.1]} 9... a6 {[%clk
0:03:00.1]} 10. Be2 {[%clk 0:02:55.9]} 10... Bd7 {[%clk 0:02:53.6]} 11. Qa3
{[%clk 0:02:50.9]} 11... b5 {[%clk 0:02:53]} 12. O-O {[%clk 0:02:49.7]} 12...
Re8 {[%clk 0:02:51.5]} 13. Bg5 {[%clk 0:02:47.1]} 13... h6 {[%clk 0:02:50.5]}
14. Bh4 {[%clk 0:02:47.1]} 14... b4 {[%clk 0:02:48.3]} 15. Qb2 {[%clk 0:02:34]}
15... bxc3 {[%clk 0:02:47.4]} 16. Qxc3 {[%clk 0:02:34.9]} 16... Qc8 {[%clk
0:02:38.2]} 17. Rac1 {[%clk 0:02:30.2]} 17... e5 {[%clk 0:02:18.5]} 18. dxe5
{[%clk 0:02:24.5]} 18... Nxe5 {[%clk 0:02:19.1]} 19. Qxc7 {[%clk 0:02:21.8]}
19... Qxc7 {[%clk 0:02:10.6]} 20. Rxc7 {[%clk 0:02:22.7]} 20... Be6 {[%clk
0:02:10.5]} 21. a4 {[%clk 0:02:08.1]} 21... a5 {[%clk 0:02:03.6]} 22. Nd4 {[%clk
0:01:53.8]} 22... g5 {[%clk 0:01:38.3]} 23. Bg3 {[%clk 0:01:50.4]} 23... Ng6
{[%clk 0:01:29.3]} 24. Nxe6 {[%clk 0:01:46.4]} 24... Rxe6 {[%clk 0:01:30.2]} 25.
Bc4 {[%clk 0:01:43.3]} 25... Re7 {[%clk 0:01:18.3]} 26. Rxe7 {[%clk 0:01:42.9]}
26... Nxe7 {[%clk 0:01:19.2]} 27. Rb1 {[%clk 0:01:42.9]} 27... Rc8 {[%clk
0:01:16.2]} 28. Ba2 {[%clk 0:01:24.7]} 28... Rc2 {[%clk 0:01:07.4]} 29. Rb8+
{[%clk 0:01:24.2]} 29... Bf8 {[%clk 0:01:06.7]} 30. Bd6 {[%clk 0:01:19.1]} 30...
Kg7 {[%clk 0:01:07.1]} 31. Bb3 {[%clk 0:01:15.3]} 31... Rc1+ {[%clk 0:01:07.2]}
32. Kh2 {[%clk 0:01:15]} 32... Ng6 {[%clk 0:01:01.8]} 33. Bxf8+ {[%clk
0:01:11.7]} 33... Nxf8 {[%clk 0:01:02.7]} 34. Rb7 {[%clk 0:01:12.2]} 34... Rc3
{[%clk 0:01:00.3]} 35. Bxf7 {[%clk 0:01:09.9]} 35... Kf6 {[%clk 0:00:57.8]} 36.
Bd5 {[%clk 0:01:08.9]} 36... Ke5 {[%clk 0:00:58]} 37. Rb5 {[%clk 0:01:01.9]}
37... Kd4 {[%clk 0:00:53.9]} 38. Rxa5 {[%clk 0:00:59.4]} 38... Ng6 {[%clk
0:00:54.1]} 39. Ra6 {[%clk 0:00:51]} 39... Nf4 {[%clk 0:00:54.1]} 40. Rxh6
{[%clk 0:00:50.2]} 40... Rc2 {[%clk 0:00:54.7]} 41. Kg3 {[%clk 0:00:45.5]} 41...
Rc3+ {[%clk 0:00:51.6]} 42. Kg4 {[%clk 0:00:43.6]} 42... Nxg2 {[%clk 0:00:52.3]}
43. Kxg5 {[%clk 0:00:42.5]} 43... Ne1 {[%clk 0:00:52.9]} 44. f4 {[%clk
0:00:42.1]} 44... Nf3+ {[%clk 0:00:53]} 45. Kf6 {[%clk 0:00:42.6]} 45... Ra3
{[%clk 0:00:49.5]} 46. Bc6 {[%clk 0:00:37.7]} 46... Kc5 {[%clk 0:00:49.7]} 47.
Kf7 {[%clk 0:00:34.7]} 47... Nd4 {[%clk 0:00:49.5]} 48. Bb5 {[%clk 0:00:33.7]}
48... Re3 {[%clk 0:00:40.8]} 49. e5 {[%clk 0:00:33.3]} 49... Rf3 {[%clk
0:00:41.5]} 50. Rf6 {[%clk 0:00:33.7]} 50... Rxh3 {[%clk 0:00:40.3]} 51. e6
{[%clk 0:00:34]} 51... Rh7+ {[%clk 0:00:39.7]} 52. Kg8 {[%clk 0:00:33.4]} 52...
Rh4 {[%clk 0:00:37.4]} 53. e7 {[%clk 0:00:32.7]} 53... Rg4+ {[%clk 0:00:38]} 54.
Kf8 {[%clk 0:00:32.9]} 1-0

[Event "Late-Titled-Tuesday-Blitz-September-26-2023"]
[Site "Chess.com"]
[Date "2023.09.26"]
[Round "1"]
[White "Dubs123"]
[Black "Mesa_1"]
[Result "1/2-1/2"]
[WhiteElo "2360"]
[BlackElo "2648"]
[TimeControl "180+1"]
[EndTime "14:07:11 PDT"]
[Termination "Game drawn by repetition"]

1. d4 {[%clk 0:03:00.9]} 1... Nf6 {[%clk 0:02:56.9]} 2. c4 {[%clk 0:03:00.4]}
2... g6 {[%clk 0:02:46.3]} 3. Nc3 {[%clk 0:03:00]} 3... Bg7 {[%clk 0:02:43.8]}
4. e4 {[%clk 0:02:59.7]} 4... d6 {[%clk 0:02:44.4]} 5. f4 {[%clk 0:02:59.7]}
5... O-O {[%clk 0:02:43.7]} 6. Nf3 {[%clk 0:02:59.8]} 6... e5 {[%clk 0:02:41.6]}
7. fxe5 {[%clk 0:02:58.9]} 7... dxe5 {[%clk 0:02:42.5]} 8. d5 {[%clk 0:02:59.1]}
8... c6 {[%clk 0:02:42.4]} 9. Be2 {[%clk 0:02:53.6]} 9... Na6 {[%clk 0:02:40.7]}
10. O-O {[%clk 0:02:31.9]} 10... Nc5 {[%clk 0:02:38.5]} 11. Qc2 {[%clk
0:02:28.9]} 11... a5 {[%clk 0:02:36.6]} 12. Be3 {[%clk 0:02:26.8]} 12... Qd6
{[%clk 0:02:31.7]} 13. Rad1 {[%clk 0:02:22.5]} 13... cxd5 {[%clk 0:02:31.6]} 14.
Nb5 {[%clk 0:01:37]} 14... Qe7 {[%clk 0:02:25.4]} 15. exd5 {[%clk 0:01:31.1]}
15... Bf5 {[%clk 0:02:17.7]} 16. Qc1 {[%clk 0:00:57.9]} 16... Rac8 {[%clk
0:02:08.7]} 17. d6 {[%clk 0:00:51.4]} 17... Qd8 {[%clk 0:01:56.8]} 18. Nxe5
{[%clk 0:00:40.3]} 18... Re8 {[%clk 0:01:55.4]} 19. Bd4 {[%clk 0:00:36]} 19...
Nfe4 {[%clk 0:01:40]} 20. d7 {[%clk 0:00:19.6]} 20... Nxd7 {[%clk 0:01:31.6]}
21. Rxf5 {[%clk 0:00:13.3]} 21... Nxe5 {[%clk 0:01:23.9]} 22. Rxe5 {[%clk
0:00:08.2]} 22... Bxe5 {[%clk 0:00:48.8]} 23. Bxe5 {[%clk 0:00:09.1]} 23... Qh4
{[%clk 0:00:44.6]} 24. Bf3 {[%clk 0:00:07.6]} 24... Rxe5 {[%clk 0:00:43.2]} 25.
Bxe4 {[%clk 0:00:07]} 25... Qxe4 {[%clk 0:00:44.1]} 26. Nd6 {[%clk 0:00:07]}
26... Qg4 {[%clk 0:00:29.1]} 27. h3 {[%clk 0:00:06.4]} 27... Qe6 {[%clk
0:00:18.5]} 28. Nxc8 {[%clk 0:00:06.6]} 28... Qxc8 {[%clk 0:00:19.4]} 29. Qf4
{[%clk 0:00:06.7]} 29... Qe8 {[%clk 0:00:19.5]} 30. Qf6 {[%clk 0:00:05.5]} 30...
Re1+ {[%clk 0:00:18.7]} 31. Rxe1 {[%clk 0:00:06]} 31... Qxe1+ {[%clk 0:00:19.2]}
32. Kh2 {[%clk 0:00:06.6]} 32... Qe2 {[%clk 0:00:17.3]} 33. Qd8+ {[%clk
0:00:06.4]} 33... Kg7 {[%clk 0:00:17.4]} 34. Qd4+ {[%clk 0:00:06.9]} 34... Kg8
{[%clk 0:00:17.3]} 35. Qd8+ {[%clk 0:00:07.2]} 35... Kg7 {[%clk 0:00:17.7]} 36.
Qd4+ {[%clk 0:00:07.3]} 36... Kh6 {[%clk 0:00:18]} 37. Qf4+ {[%clk 0:00:07.5]}
37... Kg7 {[%clk 0:00:16.9]} 38. Qd4+ {[%clk 0:00:07.8]} 1/2-1/2

[Event "Late-Titled-Tuesday-Blitz-September-26-2023"]
[Site "Chess.com"]
[Date "2023.09.26"]
[Round "1"]
[White "ejalmedina"]
[Black "jaskol95"]
[Result "0-1"]
[WhiteElo "2318"]
[BlackElo "2625"]
[TimeControl "180+1"]
[EndTime "14:07:11 PDT"]
[Termination "jaskol95 won by resignation"]

1. d4 {[%clk 0:02:56]} 1... d5 {[%clk 0:02:59.7]} 2. c4 {[%clk 0:02:55.1]} 2...
e5 {[%clk 0:02:59.7]} 3. dxe5 {[%clk 0:02:53.8]} 3... d4 {[%clk 0:03:00.1]} 4.
Nf3 {[%clk 0:02:53.5]} 4... Nc6 {[%clk 0:03:00.6]} 5. a3 {[%clk 0:02:53.2]} 5...
a5 {[%clk 0:03:01.1]} 6. g3 {[%clk 0:02:48]} 6... Nge7 {[%clk 0:03:01.2]} 7. Bg5
{[%clk 0:02:40]} 7... h6 {[%clk 0:02:47.1]} 8. Bxe7 {[%clk 0:02:39.9]} 8... Bxe7
{[%clk 0:02:43]} 9. Bg2 {[%clk 0:02:39.9]} 9... O-O {[%clk 0:02:42.5]} 10. O-O
{[%clk 0:02:39.7]} 10... Bc5 {[%clk 0:02:38.9]} 11. Nbd2 {[%clk 0:02:38.5]}
11... Re8 {[%clk 0:02:28.7]} 12. Nb3 {[%clk 0:02:37.1]} 12... Ba7 {[%clk
0:02:28.5]} 13. c5 {[%clk 0:02:36.1]} 13... Nxe5 {[%clk 0:02:14.7]} 14. Nxe5
{[%clk 0:02:29.7]} 14... Rxe5 {[%clk 0:02:14.2]} 15. Qxd4 {[%clk 0:02:27.2]}
15... Qxd4 {[%clk 0:02:07]} 16. Nxd4 {[%clk 0:02:28.1]} 16... Bxc5 {[%clk
0:02:07.4]} 17. Rfd1 {[%clk 0:02:19.7]} 17... c6 {[%clk 0:01:43.3]} 18. e3
{[%clk 0:01:55.9]} 18... Bg4 {[%clk 0:01:36.5]} 19. Bf3 {[%clk 0:01:51.7]} 19...
Bh3 {[%clk 0:01:22.1]} 20. Rac1 {[%clk 0:01:39.5]} 20... Rd8 {[%clk 0:01:05.1]}
21. Ne2 {[%clk 0:01:33.9]} 21... Rxd1+ {[%clk 0:01:02.1]} 22. Rxd1 {[%clk
0:01:34.8]} 22... Re8 {[%clk 0:00:58]} 23. Nf4 {[%clk 0:01:32.6]} 23... Bf5
{[%clk 0:00:57.4]} 24. h4 {[%clk 0:01:26.9]} 24... Be7 {[%clk 0:00:49.6]} 25.
Kg2 {[%clk 0:01:23.7]} 25... Rd8 {[%clk 0:00:47.4]} 26. Rxd8+ {[%clk 0:01:20.3]}
26... Bxd8 {[%clk 0:00:48.3]} 27. b4 {[%clk 0:01:20.1]} 27... axb4 {[%clk
0:00:45.4]} 28. axb4 {[%clk 0:01:21]} 28... Bc8 {[%clk 0:00:43.5]} 29. Nd3
{[%clk 0:01:06.6]} 29... Kf8 {[%clk 0:00:38.9]} 30. Nc5 {[%clk 0:01:00.2]} 30...
Be7 {[%clk 0:00:37.1]} 31. Be4 {[%clk 0:00:53.4]} 31... Ke8 {[%clk 0:00:34.6]}
32. f4 {[%clk 0:00:46.3]} 32... Kd8 {[%clk 0:00:34.7]} 33. Kf3 {[%clk
0:00:44.8]} 33... Kc7 {[%clk 0:00:35]} 34. Nd3 {[%clk 0:00:41.5]} 34... f5
{[%clk 0:00:33.4]} 35. Nc5 {[%clk 0:00:38.6]} 35... Bxc5 {[%clk 0:00:30.4]} 36.
bxc5 {[%clk 0:00:37]} 36... fxe4+ {[%clk 0:00:30.9]} 37. Kxe4 {[%clk 0:00:37.7]}
37... b6 {[%clk 0:00:28.7]} 38. cxb6+ {[%clk 0:00:37.8]} 38... Kxb6 {[%clk
0:00:29.6]} 39. Kd4 {[%clk 0:00:37.3]} 39... c5+ {[%clk 0:00:29.8]} 40. Kc3
{[%clk 0:00:35.8]} 40... Kc6 {[%clk 0:00:29.7]} 41. e4 {[%clk 0:00:36.2]} 41...
Kd6 {[%clk 0:00:29.3]} 42. Kc4 {[%clk 0:00:34.3]} 42... Ba6+ {[%clk 0:00:29.5]}
43. Kc3 {[%clk 0:00:31.7]} 43... Bb7 {[%clk 0:00:30.2]} 44. e5+ {[%clk
0:00:29.5]} 44... Kd5 {[%clk 0:00:29.6]} 45. g4 {[%clk 0:00:29.5]} 45... Bc8
{[%clk 0:00:29.5]} 46. g5 {[%clk 0:00:28.2]} 46... h5 {[%clk 0:00:27.1]} 47. Kd3
{[%clk 0:00:26.1]} 47... Bf5+ {[%clk 0:00:27.1]} 48. Kc3 {[%clk 0:00:26.1]}
48... Ke4 {[%clk 0:00:26.4]} 49. Kc4 {[%clk 0:00:26.4]} 49... Kxf4 {[%clk
0:00:27]} 50. Kxc5 {[%clk 0:00:25.7]} 50... Kxe5 {[%clk 0:00:27.4]} 51. Kc6
{[%clk 0:00:25.8]} 51... g6 {[%clk 0:00:27.5]} 0-1

[Event "Late-Titled-Tuesday-Blitz-September-26-2023"]
[Site "Chess.com"]
[Date "2023.09.26"]
[Round "1"]
[White "laskakid"]
[Black "SRob2003"]
[Result "1-0"]
[WhiteElo "2327"]
[BlackElo "2601"]
[TimeControl "180+1"]
[EndTime "14:07:11 PDT"]
[Termination "laskakid won on time"]

1. d4 {[%clk 0:03:00.9]} 1... Nf6 {[%clk 0:02:57.9]} 2. c4 {[%clk 0:03:00.8]}
2... e6 {[%clk 0:02:58]} 3. Nf3 {[%clk 0:03:00.2]} 3... d5 {[%clk 0:02:57.9]} 4.
g3 {[%clk 0:03:00.1]} 4... Bb4+ {[%clk 0:02:58]} 5. Bd2 {[%clk 0:02:59.6]} 5...
Be7 {[%clk 0:02:58.4]} 6. Bg2 {[%clk 0:02:59.4]} 6... O-O {[%clk 0:02:57.9]} 7.
O-O {[%clk 0:02:59.5]} 7... Nbd7 {[%clk 0:02:58.5]} 8. Bc3 {[%clk 0:02:57]} 8...
c6 {[%clk 0:02:57]} 9. Nbd2 {[%clk 0:02:56.8]} 9... b5 {[%clk 0:02:54.1]} 10. b3
{[%clk 0:02:46.6]} 10... Ba3 {[%clk 0:02:45.9]} 11. b4 {[%clk 0:02:34.3]} 11...
a5 {[%clk 0:02:43.4]} 12. bxa5 {[%clk 0:02:10.3]} 12... dxc4 {[%clk 0:02:40.7]}
13. Nb1 {[%clk 0:01:44.1]} 13... Bd6 {[%clk 0:02:33.2]} 14. Nfd2 {[%clk
0:01:39.5]} 14... Nd5 {[%clk 0:02:07.7]} 15. a4 {[%clk 0:01:17.4]} 15... Ba6
{[%clk 0:01:48.9]} 16. axb5 {[%clk 0:01:10.2]} 16... cxb5 {[%clk 0:01:49.8]} 17.
Ne4 {[%clk 0:01:01.6]} 17... Bc7 {[%clk 0:01:46.4]} 18. Nc5 {[%clk 0:00:52.1]}
18... Nxc5 {[%clk 0:01:35.8]} 19. dxc5 {[%clk 0:00:51.3]} 19... b4 {[%clk
0:01:35.8]} 20. e4 {[%clk 0:00:37]} 20... Nxc3 {[%clk 0:01:32.2]} 21. Nxc3
{[%clk 0:00:33.8]} 21... bxc3 {[%clk 0:01:31.8]} 22. Qc1 {[%clk 0:00:29.4]}
22... Qd2 {[%clk 0:01:27.9]} 23. Rd1 {[%clk 0:00:26.9]} 23... Qxc1 {[%clk
0:01:18.5]} 24. Raxc1 {[%clk 0:00:27.2]} 24... Bxa5 {[%clk 0:01:14.7]} 25. e5
{[%clk 0:00:27.4]} 25... Rac8 {[%clk 0:01:14.9]} 26. Ra1 {[%clk 0:00:27.1]}
26... Rxc5 {[%clk 0:00:33.2]} 27. Ra2 {[%clk 0:00:25.2]} 27... c2 {[%clk
0:00:28.3]} 28. Rc1 {[%clk 0:00:23.1]} 28... c3 {[%clk 0:00:26.9]} 29. Rcxc2
{[%clk 0:00:22.6]} 29... Bd3 {[%clk 0:00:25.9]} 30. Rc1 {[%clk 0:00:21.9]} 30...
c2 {[%clk 0:00:23.7]} 31. Bf3 {[%clk 0:00:20.5]} 31... Bd2 {[%clk 0:00:15.8]}
32. Rca1 {[%clk 0:00:19.9]} 32... c1=Q+ {[%clk 0:00:15.2]} 33. Rxc1 {[%clk
0:00:20.1]} 33... Bxc1 {[%clk 0:00:15.6]} 34. Ra7 {[%clk 0:00:16.5]} 1-0